bitfinex/quotes_BTCUSD_20241004
["timestamp","ask_amount","ask_price","bid_price","bid_amount"]
[1728046321156,0.0938,61755.0,61746.0,0.0032819]
[1728046321361,0.161951,61747.0,61746.0,0.0032819]
[1728046321616,0.0785,61747.0,61736.0,0.53171185]
[1728046321851,0.0785,61747.0,61735.0,0.04821622]
[1728046321852,0.24168671,61747.0,61735.0,0.323964]
[1728046322069,0.240451,61747.0,61741.0,0.161966]
[1728046322287,0.48381724,61747.0,61746.0,0.001]
[1728046322750,0.240451,61747.0,61746.0,0.001]
[1728046323022,0.240451,61747.0,61746.0,0.002]
[1728046323264,0.0785,61747.0,61746.0,0.163953]
[1728046323488,0.0756,61754.0,61748.0,0.323895]
[1728046323703,0.0756,61754.0,61753.0,0.161935]
[1728046324383,0.009,61755.0,61753.0,0.161935]
[1728046324384,0.0936,61763.0,61762.0,0.161911]
[1728046324843,0.0936,61763.0,61762.0,0.16510899]
[1728046325069,0.002,61767.0,61766.0,0.161901]
[1728046325493,0.002,61767.0,61766.0,0.16507802]
[1728046325725,0.002,61767.0,61766.0,0.26507802]
[1728046326193,0.002,61767.0,61766.0,0.42826473]
[1728046327242,0.02737924,61767.0,61766.0,0.42826473]
[1728046328119,0.02737924,61767.0,61766.0,0.43126473]
[1728046328350,0.02737924,61767.0,61766.0,0.43426473]
[1728046328573,0.02837924,61767.0,61766.0,0.44326473]
[1728046328796,0.02837924,61767.0,61766.0,0.43726473]
[1728046329011,0.02837924,61767.0,61766.0,0.44426473]
[1728046329488,0.02919924,61767.0,61766.0,0.55026473]
[1728046329732,0.02919924,61767.0,61766.0,1.08994544]
[1728046329733,0.00182,61767.0,61766.0,1.08994544]
[1728046329980,0.000821,61769.0,61768.0,0.289896]
[1728046330206,0.000821,61769.0,61768.0,1.71033625]
[1728046330433,0.000821,61769.0,61768.0,1.71350278]
[1728046330649,0.000821,61769.0,61768.0,1.74918571]
[1728046330895,0.00102,61779.0,61778.0,0.161869]
[1728046331124,0.00102,61779.0,61778.0,0.73003625]
[1728046331341,0.00102,61779.0,61778.0,0.73315037]
[1728046331557,0.00102,61779.0,61778.0,0.73515037]
[1728046331834,0.00102,61779.0,61778.0,1.03911137]
[1728046332082,0.00102,61779.0,61778.0,1.05311137]
[1728046332572,0.00102,61779.0,61778.0,1.1068373]
[1728046333513,1e-06,61779.0,61778.0,1.1068373]
[1728046334518,0.0164732,61798.0,61785.0,0.168851]
[1728046334761,0.0164732,61798.0,61785.0,0.73701825]
[1728046334988,0.0164732,61798.0,61785.0,1.20010812]
[1728046335685,0.0164732,61798.0,61785.0,1.21410812]
[1728046336141,0.0164732,61798.0,61785.0,1.22810812]
[1728046336367,0.0164732,61798.0,61785.0,0.95373912]
[1728046336593,0.0164732,61798.0,61785.0,1.01945412]
[1728046336809,0.0164732,61798.0,61785.0,1.00545412]
[1728046337047,0.0164732,61798.0,61785.0,0.76187712]
[1728046337290,0.0164732,61798.0,61785.0,0.77587712]
[1728046337530,0.0164732,61798.0,61785.0,0.48126437]
[1728046337764,0.0164732,61798.0,61785.0,0.46726437]
[1728046338003,0.079,61793.0,61785.0,0.37226437]
[1728046338279,0.24336624,61794.0,61785.0,0.64024491]
[1728046338761,0.24336624,61794.0,61785.0,0.18107766]
[1728046339006,0.24336624,61794.0,61785.0,0.17470987]
[1728046339244,0.33626624,61794.0,61785.0,0.18270987]
[1728046339485,0.33626624,61794.0,61785.0,0.17470987]
[1728046340167,0.33626624,61794.0,61785.0,0.18070987]
[1728046340385,0.33626624,61794.0,61785.0,0.28070987]
[1728046340600,0.33626624,61794.0,61785.0,0.27470987]
[1728046340872,0.33626624,61794.0,61785.0,0.29370987]
[1728046341121,0.323677,61790.0,61785.0,0.006]
[1728046341365,0.239268,61786.0,61785.0,0.015]
[1728046341592,0.19428185,61786.0,61778.0,0.323739]
[1728046341840,0.07742,61786.0,61785.0,0.001]
[1728046342058,0.07742,61786.0,61785.0,0.165851]
[1728046342515,0.00082,61786.0,61785.0,0.42603771]
[1728046342742,0.00282,61786.0,61785.0,0.42603771]
[1728046343213,0.00282,61786.0,61785.0,0.42503771]
[1728046343690,0.00282,61786.0,61785.0,0.261851]
[1728046343934,0.00082,61786.0,61785.0,0.261851]
[1728046344181,0.00182,61786.0,61785.0,0.261851]
[1728046344856,0.00182,61786.0,61785.0,0.45203771]
[1728046345089,0.00082,61786.0,61785.0,0.43803771]
[1728046345564,0.00082,61786.0,61785.0,0.44803771]
[1728046345797,0.00082,61786.0,61785.0,0.43803771]
[1728046346817,0.00082,61786.0,61785.0,0.42503771]
[1728046347042,0.00082,61786.0,61785.0,0.44603771]
[1728046347490,0.00082,61786.0,61785.0,0.43903771]
[1728046347948,0.00082,61786.0,61785.0,0.43803771]
[1728046348700,0.00082,61786.0,61785.0,0.45003771]
[1728046349188,0.00082,61786.0,61785.0,0.43803771]
[1728046349708,0.00082,61786.0,61785.0,0.274851]
[1728046350479,0.00082,61786.0,61785.0,0.45203771]
[1728046354300,0.00082,61792.0,61785.0,0.31818671]
[1728046354544,0.00082,61792.0,61791.0,0.54381554]
[1728046354760,0.00082,61792.0,61791.0,0.70700225]
[1728046355255,0.00082,61792.0,61791.0,0.73000225]
[1728046355747,0.00082,61792.0,61791.0,1.41850825]
[1728046355983,0.02536795,61802.0,61797.0,0.005]
[1728046356235,0.02536795,61802.0,61797.0,0.73498725]
[1728046356479,0.02536795,61802.0,61797.0,1.83257325]
[1728046356712,0.00775756,61798.0,61797.0,1.87142284]
[1728046357179,0.00775756,61798.0,61797.0,1.87342284]
[1728046357413,0.00775756,61798.0,61797.0,1.98102284]
[1728046357661,0.00011,61804.0,61803.0,0.57178454]
[1728046357913,0.00011,61804.0,61803.0,0.77922656]
[1728046359015,0.00011,61804.0,61803.0,0.44799071]
[1728046359269,0.00011,61804.0,61803.0,0.32499071]
[1728046359498,0.00011,61804.0,61803.0,0.161804]
[1728046359736,0.00011,61804.0,61801.0,0.323619]
[1728046359961,0.00011,61804.0,61803.0,0.161804]
[1728046360191,0.00011,61804.0,61803.0,0.028]
[1728046360456,0.00011,61804.0,61803.0,0.014]
[1728046360679,0.00011,61804.0,61797.0,0.323638]
[1728046360911,0.485514,61804.0,61803.0,0.004]
[1728046361124,0.161807,61802.0,61801.0,0.002]
[1728046361340,0.0799,61802.0,61801.0,0.163809]
[1728046362269,0.0799,61802.0,61801.0,0.161809]
[1728046363388,0.0799,61802.0,61801.0,0.162809]
[1728046363622,0.0809,61802.0,61801.0,0.162809]
[1728046363841,0.0799,61802.0,61801.0,0.161809]
[1728046364334,0.00011,61804.0,61801.0,0.161809]
[1728046364335,0.00011,61804.0,61803.0,0.161804]
[1728046364556,0.00011,61804.0,61803.0,0.32499071]
[1728046364774,0.00011,61804.0,61803.0,0.42499071]
[1728046366646,0.00011,61804.0,61803.0,0.42899071]
[1728046367357,0.00011,61804.0,61803.0,0.43599071]
[1728046367574,0.00011,61804.0,61803.0,0.42999071]
[1728046368008,0.00011,61804.0,61803.0,0.46599071]
[1728046368514,0.00011,61804.0,61803.0,0.45299071]
[1728046368746,0.02536048,61810.0,61809.0,0.161788]
[1728046368970,0.02536048,61810.0,61809.0,0.72995525]
[1728046370156,0.02536048,61810.0,61809.0,0.74395525]
[1728046370402,0.02536048,61810.0,61809.0,0.4868084]
[1728046370622,0.02536048,61810.0,61809.0,0.42497471]
[1728046370843,0.02536048,61810.0,61809.0,0.43397471]
[1728046371067,0.02536048,61810.0,61809.0,0.44797471]
[1728046371290,0.10606048,61810.0,61809.0,0.284788]
[1728046371542,0.0807,61810.0,61809.0,0.270788]
[1728046371799,0.0807,61810.0,61809.0,0.283788]
[1728046372018,0.0807,61810.0,61809.0,0.270788]
[1728046372257,0.0799,61818.0,61816.0,0.161768]
[1728046372495,0.0799,61818.0,61817.0,0.161767]
[1728046374167,0.0798,61818.0,61817.0,0.161767]
[1728046374361,0.10516006,61818.0,61817.0,0.161767]
[1728046374638,0.10516006,61818.0,61817.0,0.164767]
[1728046375066,0.10516006,61818.0,61817.0,0.003]
[1728046375293,0.26692506,61818.0,61817.0,0.003]
[1728046375510,0.0905,61816.0,61809.0,0.323576]
[1728046375727,0.0905,61816.0,61807.0,0.14793524]
[1728046375728,0.323546,61815.0,61807.0,0.14793524]
[1728046375970,0.0905,61816.0,61806.0,0.1]
[1728046376435,0.0905,61816.0,61815.0,0.161773]
[1728046377348,0.0925,61816.0,61815.0,0.161773]
[1728046377574,0.0905,61816.0,61815.0,0.161773]
[1728046377805,0.0905,61816.0,61812.0,0.1]
[1728046378046,0.25227,61816.0,61815.0,0.001]
[1728046378717,0.161777,61814.0,61812.0,0.1]
[1728046378934,0.161777,61814.0,61809.0,0.161787]
[1728046378935,0.161777,61814.0,61811.0,0.1]
[1728046379414,0.16178,61812.0,61811.0,0.1]
[1728046380054,0.16178,61812.0,61803.0,0.323608]
[1728046380055,0.323577,61810.0,61804.0,0.1]
[1728046380267,0.323576,61810.0,61804.0,0.1]
[1728046380492,0.313576,61810.0,61804.0,0.423602]
[1728046380772,0.323568,61811.0,61802.0,0.1]
[1728046380993,0.323576,61810.0,61804.0,0.1]
[1728046381225,0.161799,61805.0,61804.0,0.1]
[1728046381437,0.24336624,61810.0,61804.0,0.1]
[1728046381438,0.323573,61810.0,61804.0,0.161801]
[1728046381659,0.323573,61810.0,61800.0,0.001638]
[1728046381660,0.486361,61810.0,61800.0,0.001638]
[1728046381873,0.486361,61810.0,61802.0,0.161806]
[1728046381874,0.3489423,61809.0,61802.0,0.161806]
[1728046382116,0.3489423,61809.0,61800.0,0.325258]
[1728046382117,0.161793,61808.0,61800.0,0.325258]
[1728046382320,0.001,61810.0,61804.0,0.323602]
[1728046382564,0.40515524,61809.0,61806.0,0.161795]
[1728046382784,0.24336624,61809.0,61806.0,0.161795]
[1728046383004,0.40515524,61809.0,61806.0,0.161795]
[1728046383264,0.161797,61806.0,61803.0,0.161803]
[1728046383495,0.32357,61811.0,61803.0,0.161803]
[1728046383496,0.161794,61807.0,61803.0,0.161803]
[1728046383986,0.1618,61805.0,61801.0,0.161808]
[1728046384240,0.161809,61801.0,61800.0,0.001638]
[1728046384478,0.330009,61801.0,61800.0,0.001638]
[1728046385262,0.49319571,61801.0,61800.0,0.001638]
[1728046385507,0.240858,61783.0,61780.0,0.24336624]
[1728046385751,0.161859,61782.0,61780.0,0.24336624]
[1728046385995,0.161859,61782.0,61769.0,0.04802675]
[1728046386240,0.161859,61782.0,61768.0,0.39583113]
[1728046386241,0.161859,61782.0,61770.0,0.40525524]
[1728046386484,0.161859,61782.0,61771.0,0.161888]
[1728046386752,0.161859,61782.0,61768.0,0.323791]
[1728046386753,0.161859,61782.0,61769.0,0.161892]
[1728046386975,0.161859,61782.0,61766.0,0.24336624]
[1728046386976,0.32504571,61782.0,61766.0,0.24336624]
[1728046387241,0.41812985,61782.0,61766.0,0.24336624]
[1728046387489,0.25827085,61782.0,61763.0,0.24336624]
[1728046387716,0.161891,61770.0,61764.0,0.161904]
[1728046387946,0.323727,61781.0,61770.0,0.323777]
[1728046388170,0.24336624,61775.0,61768.0,0.161896]
[1728046388415,0.24336624,61775.0,61765.0,0.16318671]
[1728046388416,0.26874456,61779.0,61774.0,0.161879]
[1728046388626,0.43061356,61779.0,61774.0,0.161879]
[1728046388850,0.43061356,61779.0,61776.0,0.161873]
[1728046388851,0.02537832,61779.0,61776.0,0.161873]
[1728046389074,0.02537832,61779.0,61767.0,0.323792]
[1728046389314,0.02537832,61779.0,61765.0,0.16318671]
[1728046389315,0.02537832,61779.0,61765.0,0.40655295]
[1728046389540,0.161873,61777.0,61772.0,0.1]
[1728046389778,0.02537832,61779.0,61778.0,0.161869]
[1728046390008,0.02537832,61779.0,61778.0,0.261869]
[1728046390235,0.02537832,61779.0,61778.0,0.42505571]
[1728046390894,0.02537832,61779.0,61778.0,0.70703625]
[1728046391150,0.02537832,61779.0,61778.0,0.70903625]
[1728046391151,0.02737832,61779.0,61778.0,0.70903625]
[1728046391659,0.02537832,61779.0,61778.0,0.70803625]
[1728046392136,0.02537832,61779.0,61778.0,0.71803625]
[1728046392379,0.02537832,61779.0,61778.0,0.70803625]
[1728046392599,0.02537832,61779.0,61778.0,0.73103625]
[1728046393028,0.02537832,61779.0,61778.0,0.73003625]
[1728046393251,0.02537832,61779.0,61778.0,0.74103625]
[1728046393790,0.0901,61807.0,61781.0,0.005]
[1728046394024,0.0901,61807.0,61792.0,0.261833]
[1728046394461,0.0901,61807.0,61801.0,0.261809]
[1728046395161,0.0901,61807.0,61806.0,0.161796]
[1728046395885,0.0253654,61807.0,61806.0,0.161796]
[1728046396170,0.0253654,61807.0,61806.0,0.261796]
[1728046396901,0.0253654,61807.0,61806.0,0.42498271]
[1728046398114,0.0253654,61807.0,61806.0,0.43298271]
[1728046398358,0.0253654,61807.0,61806.0,0.43998271]
[1728046398790,0.000819,61810.0,61809.0,0.261788]
[1728046399002,0.000819,61810.0,61809.0,0.42742445]
[1728046399211,0.000819,61810.0,61809.0,0.42497471]
[1728046399687,0.000819,61810.0,61809.0,0.70695525]
[1728046400151,0.000819,61810.0,61809.0,0.42497471]
[1728046400627,0.000819,61810.0,61809.0,0.43160896]
[1728046400856,0.000819,61810.0,61809.0,0.43397471]
[1728046401088,0.000819,61810.0,61809.0,0.270788]
[1728046401334,0.000819,61810.0,61809.0,0.281788]
[1728046401811,0.000819,61810.0,61809.0,0.292788]
[1728046402044,0.000819,61810.0,61809.0,0.45597471]
[1728046403219,0.02617875,61810.0,61809.0,0.44697471]
[1728046403454,0.02617875,61810.0,61809.0,0.45597471]
[1728046403690,0.02617875,61810.0,61809.0,0.43397471]
[1728046403915,0.02617875,61810.0,61809.0,0.44497471]
[1728046404142,0.02617875,61810.0,61809.0,0.42497471]
[1728046404373,0.02617875,61810.0,61809.0,0.43597471]
[1728046404616,0.02617875,61810.0,61809.0,0.44897471]
[1728046406910,0.02617875,61810.0,61809.0,0.285788]
[1728046407622,0.000819,61810.0,61809.0,0.285788]
[1728046407873,0.000819,61810.0,61809.0,0.261788]
[1728046408139,0.078019,61810.0,61809.0,0.265788]
[1728046408347,0.078019,61810.0,61809.0,0.262788]
[1728046408569,0.078019,61810.0,61809.0,0.261788]
[1728046409023,0.078019,61810.0,61809.0,0.264788]
[1728046409298,0.078019,61810.0,61809.0,0.261788]
[1728046410230,0.078019,61810.0,61809.0,0.263788]
[1728046410471,0.078019,61810.0,61809.0,0.002]
[1728046410718,0.10338078,61810.0,61809.0,0.264788]
[1728046410957,0.6825404,61810.0,61809.0,0.002]
[1728046411192,0.6825404,61810.0,61809.0,0.005]
[1728046411193,0.63984732,61810.0,61809.0,0.005]
[1728046411453,0.63984732,61810.0,61809.0,0.003]
[1728046411454,0.19608078,61810.0,61809.0,0.003]
[1728046411680,0.19608078,61810.0,61799.0,0.24336624]
[1728046411681,0.19608078,61810.0,61803.0,0.323605]
[1728046411926,0.10438078,61810.0,61809.0,0.161788]
[1728046412159,0.10438078,61810.0,61795.0,0.28198054]
[1728046412160,0.078019,61810.0,61800.0,0.1]
[1728046412378,0.080019,61810.0,61809.0,0.161788]
[1728046413548,0.080019,61810.0,61809.0,0.162788]
[1728046413778,0.078019,61810.0,61809.0,0.162788]
[1728046413989,0.078019,61810.0,61809.0,0.161788]
[1728046414204,0.079019,61810.0,61809.0,0.161788]
[1728046414450,0.078019,61810.0,61809.0,0.161788]
[1728046414633,0.079019,61810.0,61809.0,0.161788]
[1728046415106,0.078019,61810.0,61809.0,0.161788]
[1728046415348,0.079019,61810.0,61805.0,0.1]
[1728046415580,0.079019,61810.0,61804.0,0.323602]
[1728046415805,0.079019,61810.0,61808.0,0.161789]
[1728046416214,0.001819,61810.0,61809.0,0.161788]
[1728046416434,0.0271815,61810.0,61809.0,0.161788]
[1728046416878,0.0261815,61810.0,61809.0,0.161788]
[1728046417097,0.0271815,61810.0,61809.0,0.161788]
[1728046417342,0.0261815,61810.0,61809.0,0.161788]
[1728046417617,0.000819,61810.0,61809.0,0.42724927]
[1728046417819,0.000819,61810.0,61809.0,0.42697471]
[1728046418252,0.000819,61810.0,61809.0,0.42797471]
[1728046418983,0.000819,61810.0,61809.0,0.42597471]
[1728046419642,0.000819,61810.0,61809.0,0.44797471]
[1728046419860,0.000819,61810.0,61809.0,0.45497471]
[1728046420584,0.0261795,61810.0,61809.0,0.46397471]
[1728046421293,0.0261795,61810.0,61809.0,0.46597471]
[1728046421503,0.000819,61810.0,61809.0,0.46597471]
[1728046422224,0.000819,61810.0,61809.0,0.45397471]
[1728046422452,0.000819,61810.0,61809.0,0.46053009]
[1728046422667,0.000819,61810.0,61809.0,0.45353009]
[1728046423124,0.000819,61810.0,61809.0,0.46753009]
[1728046423821,0.000819,61810.0,61809.0,0.46953009]
[1728046424271,0.000819,61810.0,61809.0,0.48353009]
[1728046424958,0.000819,61810.0,61809.0,0.48153009]
[1728046425722,0.02617676,61810.0,61809.0,0.48153009]
[1728046427418,0.000819,61810.0,61809.0,0.48153009]
[1728046428384,0.000819,61810.0,61809.0,0.46753009]
[1728046429344,0.000819,61810.0,61809.0,0.48153009]
[1728046429821,0.000819,61810.0,61809.0,0.66879996]
[1728046430823,0.02617746,61810.0,61809.0,0.66879996]
[1728046431066,0.02617746,61810.0,61809.0,0.03455538]
[1728046431329,0.06115071,61810.0,61809.0,0.028]
[1728046431558,0.22293671,61810.0,61809.0,0.028]
[1728046431778,0.32243671,61810.0,61809.0,0.028]
[1728046432029,0.32243671,61810.0,61809.0,0.014]
[1728046432481,0.32243671,61810.0,61809.0,0.003]
[1728046432919,0.32243671,61810.0,61809.0,0.005]
[1728046433366,0.02617746,61810.0,61809.0,0.003]
[1728046433590,0.02617746,61810.0,61809.0,0.70585629]
[1728046434035,0.02717746,61810.0,61809.0,0.70585629]
[1728046434277,0.001819,61810.0,61809.0,0.70585629]
[1728046434569,0.002819,61810.0,61809.0,0.72985629]
[1728046434820,0.001819,61810.0,61809.0,0.72985629]
[1728046435084,0.003819,61810.0,61809.0,0.73085629]
[1728046435333,0.001819,61810.0,61809.0,0.72985629]
[1728046435566,0.001819,61810.0,61809.0,0.74085629]
[1728046436009,0.0144588,61810.0,61809.0,0.73985629]
[1728046436472,0.0144588,61810.0,61809.0,0.74885629]
[1728046436961,0.0144588,61810.0,61809.0,0.7553388]
[1728046437438,0.03981819,61810.0,61809.0,0.7553388]
[1728046437691,0.0144588,61810.0,61809.0,0.7553388]
[1728046438674,0.000819,61810.0,61809.0,0.7553388]
[1728046439386,0.000819,61810.0,61809.0,0.7569768]
[1728046439613,0.000819,61810.0,61809.0,0.45309522]
[1728046439853,0.000819,61810.0,61809.0,0.7339768]
[1728046440539,0.02617777,61810.0,61809.0,0.7339768]
[1728046441009,0.02617777,61810.0,61809.0,0.7569768]
[1728046442195,0.000819,61810.0,61809.0,0.83605908]
[1728046442444,0.000819,61810.0,61809.0,0.88411394]
[1728046442695,0.000819,61810.0,61809.0,0.7639768]
[1728046442916,0.000819,61818.0,61817.0,0.56764858]
[1728046443147,0.000819,61818.0,61817.0,0.82486736]
[1728046443617,0.000819,61818.0,61817.0,0.51995494]
[1728046443859,0.000819,61818.0,61817.0,0.49595801]
[1728046444111,0.000819,61818.0,61817.0,0.43895371]
[1728046444339,0.01443481,61818.0,61817.0,0.43895371]
[1728046444559,0.000819,61818.0,61817.0,0.42495371]
[1728046444782,0.000819,61818.0,61817.0,0.275767]
[1728046445017,0.01443481,61818.0,61817.0,0.43895371]
[1728046445504,0.01443481,61818.0,61817.0,0.275767]
[1728046446221,0.01443481,61818.0,61817.0,0.026]
[1728046446493,0.03979347,61818.0,61817.0,0.012]
[1728046446746,0.03979347,61818.0,61817.0,0.266767]
[1728046446985,0.03979347,61818.0,61817.0,0.262767]
[1728046447210,0.04079347,61818.0,61817.0,0.262767]
[1728046447427,0.01543481,61818.0,61817.0,0.261767]
[1728046447693,0.01743481,61818.0,61817.0,0.42495371]
[1728046447937,0.01943481,61818.0,61817.0,0.261767]
[1728046448172,0.01743481,61818.0,61817.0,0.261767]
[1728046449316,0.01443481,61818.0,61817.0,0.261767]
[1728046449546,0.01443481,61818.0,61817.0,0.264767]
[1728046449775,0.01443481,61818.0,61817.0,0.007]
[1728046450045,0.38119729,61818.0,61817.0,0.003]
[1728046450313,0.161786,61810.0,61809.0,0.001638]
[1728046450773,0.20076564,61810.0,61809.0,0.001638]
[1728046451261,0.03897964,61810.0,61809.0,0.001638]
[1728046451494,0.03997964,61810.0,61809.0,0.164426]
[1728046451715,0.03997964,61810.0,61809.0,0.002638]
[1728046451936,0.01461581,61810.0,61809.0,0.002638]
[1728046452158,0.17640181,61810.0,61809.0,0.002638]
[1728046452621,0.01461581,61810.0,61809.0,0.002638]
[1728046452890,0.122019,61831.0,61809.0,0.002638]
[1728046452891,0.01693362,61840.0,61838.0,0.166712]
[1728046453106,0.1376722,61861.0,61846.0,0.1]
[1728046453107,0.1134324,61861.0,61846.0,0.1]
[1728046453332,0.0164732,61861.0,61847.0,0.56557058]
[1728046453554,0.0164732,61861.0,61847.0,0.57057058]
[1728046453802,0.0164732,61861.0,61847.0,0.44787571]
[1728046454097,0.0164732,61861.0,61847.0,0.42487571]
[1728046454312,0.002,61872.0,61848.0,0.1]
[1728046454557,0.28088158,61876.0,61847.0,0.26318671]
[1728046454558,0.002,61870.0,61853.0,0.1]
[1728046454801,0.002,61870.0,61847.0,0.014]
[1728046454802,0.02534319,61867.0,61855.0,0.1]
[1728046455011,0.02534319,61867.0,61854.0,0.24336624]
[1728046455012,0.28088158,61864.0,61854.0,0.24336624]
[1728046455294,0.02534319,61867.0,61854.0,0.24336624]
[1728046455295,0.02534319,61867.0,61861.0,0.24336624]
[1728046455543,0.16318671,61866.0,61851.0,0.1]
[1728046455770,0.16318671,61866.0,61855.0,0.24336624]
[1728046457305,0.28088158,61863.0,61855.0,0.001]
[1728046457552,0.1763,61865.0,61856.0,0.24336624]
[1728046457914,0.16318671,61864.0,61856.0,0.24336624]
[1728046458035,0.1763,61865.0,61856.0,0.24336624]
[1728046458267,0.002,61866.0,61864.0,0.24336624]
[1728046458475,0.0002,61879.0,61856.0,0.24336624]
[1728046458476,0.0002,61879.0,61871.0,0.323252]
[1728046458726,0.0002,61879.0,61866.0,0.1]
[1728046458942,0.0002,61879.0,61876.0,0.161612]
[1728046459167,0.0002,61879.0,61871.0,0.323248]
[1728046459381,0.0002,61879.0,61872.0,0.323246]
[1728046459619,0.0002,61879.0,61874.0,0.161618]
[1728046459839,0.0002,61879.0,61869.0,0.1]
[1728046460080,0.00852123,61878.0,61872.0,0.323244]
[1728046460333,0.0002,61879.0,61872.0,0.323244]
[1728046460553,0.0002,61879.0,61871.0,0.24336624]
[1728046461008,0.0002,61879.0,61869.0,0.1]
[1728046461009,0.02533854,61878.0,61869.0,0.1]
[1728046461234,0.02733854,61878.0,61872.0,0.24336624]
[1728046461449,0.03876201,61877.0,61872.0,0.24336624]
[1728046461726,0.03876201,61877.0,61869.0,0.1]
[1728046461972,0.03876201,61877.0,61871.0,0.24336624]
[1728046462208,0.03876201,61877.0,61867.0,0.261635]
[1728046462437,0.04263821,61876.0,61865.0,0.1]
[1728046462674,0.04263821,61876.0,61868.0,0.1]
[1728046462895,0.04263821,61876.0,61865.0,0.1]
[1728046463143,0.04263821,61876.0,61864.0,0.24336624]
[1728046463144,0.28088158,61869.0,61864.0,0.24336624]
[1728046463394,0.16318671,61875.0,61864.0,0.24336624]
[1728046463395,0.096,61871.0,61864.0,0.24336624]
[1728046463628,0.02533854,61878.0,61864.0,0.24336624]
[1728046463629,0.0002,61879.0,61864.0,0.24336624]
[1728046463855,0.0002,61879.0,61869.0,0.161631]
[1728046463856,0.02534067,61870.0,61869.0,0.161631]
[1728046464332,0.02534067,61870.0,61869.0,0.261631]
[1728046464559,0.02534067,61870.0,61869.0,0.42481771]
[1728046465538,0.02534067,61870.0,61869.0,0.42581771]
[1728046465750,0.02034067,61870.0,61869.0,0.44881771]
[1728046465990,0.000818,61877.0,61876.0,0.261613]
[1728046466227,0.000818,61877.0,61876.0,0.42479971]
[1728046467151,0.000818,61877.0,61876.0,0.44779971]
[1728046467385,0.000818,61877.0,61876.0,0.50248567]
[1728046467596,0.000818,61877.0,61876.0,0.44779971]
[1728046467824,0.001818,61877.0,61876.0,0.46179971]
[1728046468048,0.001818,61877.0,61876.0,0.51648567]
[1728046468533,0.001818,61877.0,61876.0,0.46179971]
[1728046468765,0.001818,61877.0,61876.0,0.47379971]
[1728046468766,0.002818,61877.0,61876.0,0.47379971]
[1728046469694,0.001818,61877.0,61876.0,0.45979971]
[1728046469931,0.001818,61877.0,61876.0,0.47379971]
[1728046470176,0.001818,61877.0,61876.0,0.45979971]
[1728046470723,0.000818,61877.0,61876.0,0.46179971]
[1728046470953,0.001818,61877.0,61876.0,0.46179971]
[1728046471177,0.001818,61877.0,61876.0,0.47579971]
[1728046471399,0.000818,61877.0,61876.0,0.46179971]
[1728046471862,0.001818,61877.0,61876.0,0.45279971]
[1728046472314,0.001818,61877.0,61876.0,0.289613]
[1728046472988,0.001818,61877.0,61876.0,0.275613]
[1728046473226,0.000818,61877.0,61876.0,0.275613]
[1728046473474,0.000818,61877.0,61876.0,0.261613]
[1728046473695,0.001818,61877.0,61876.0,0.275613]
[1728046473919,0.001818,61877.0,61876.0,0.277613]
[1728046474154,0.000818,61877.0,61876.0,0.261613]
[1728046474405,0.02615275,61877.0,61876.0,0.002]
[1728046475740,0.02615275,61877.0,61876.0,0.102]
[1728046475961,0.02615275,61877.0,61876.0,0.1]
[1728046476662,0.02615275,61877.0,61876.0,0.102]
[1728046476875,0.02615275,61877.0,61872.0,0.1]
[1728046477399,0.02615275,61877.0,61876.0,0.002]
[1728046477648,0.02615275,61877.0,61872.0,0.1]
[1728046477882,0.02615275,61877.0,61876.0,0.163613]
[1728046478795,0.02615275,61877.0,61876.0,0.002]
[1728046479028,0.35094946,61877.0,61876.0,0.002]
[1728046479245,0.46210765,61877.0,61876.0,0.002]
[1728046479482,0.46210765,61877.0,61865.0,0.24336624]
[1728046479483,0.002,61873.0,61865.0,0.24336624]
[1728046479730,0.161639,61867.0,61865.0,0.24336624]
[1728046479960,0.323248,61872.0,61865.0,0.24336624]
[1728046480191,0.28088158,61873.0,61859.0,0.1]
[1728046480425,0.03883265,61871.0,61860.0,0.24336624]
[1728046480651,0.323275,61867.0,61860.0,0.24336624]
[1728046480872,0.161642,61865.0,61860.0,0.24336624]
[1728046481112,0.491913,61867.0,61860.0,0.24336624]
[1728046481360,0.007,61867.0,61856.0,0.323327]
[1728046481613,0.323273,61868.0,61857.0,0.1]
[1728046481842,0.0987,61871.0,61853.0,0.24336624]
[1728046481843,0.02534135,61866.0,61860.0,0.001]
[1728046482069,0.0134836,61865.0,61860.0,0.101]
[1728046482306,0.0134836,61865.0,61862.0,0.1]
[1728046482520,0.0134836,61864.0,61863.0,0.261647]
[1728046482960,0.0134836,61865.0,61863.0,0.261647]
[1728046483196,0.0134836,61865.0,61863.0,0.1]
[1728046483410,0.0134836,61864.0,61863.0,0.1]
[1728046483695,0.0134836,61864.0,61862.0,0.1]
[1728046483931,0.002,61865.0,61861.0,0.1]
[1728046483932,0.161642,61865.0,61861.0,0.1]
[1728046484155,0.01353705,61864.0,61861.0,0.1]
[1728046484583,0.01353705,61863.0,61861.0,0.1]
[1728046484807,0.01353705,61862.0,61861.0,0.1]
[1728046485064,0.01353705,61864.0,61863.0,0.161647]
[1728046485300,0.01354298,61864.0,61863.0,0.261647]
[1728046485776,0.01454298,61864.0,61863.0,0.261647]
[1728046486016,0.01354298,61864.0,61863.0,0.261647]
[1728046486275,0.01454298,61864.0,61863.0,0.261647]
[1728046486702,0.01354298,61864.0,61863.0,0.261647]
[1728046486927,0.01354298,61864.0,61863.0,0.263647]
[1728046487150,0.02534135,61866.0,61865.0,0.161642]
[1728046487882,0.02534135,61866.0,61865.0,0.261642]
[1728046488584,0.18698035,61866.0,61865.0,0.1]
[1728046489029,0.02534135,61866.0,61863.0,0.1]
[1728046489252,0.18698135,61866.0,61860.0,0.423306]
[1728046489487,0.02534135,61866.0,61864.0,0.161643]
[1728046489713,0.02534135,61866.0,61865.0,0.261642]
[1728046490226,0.20049178,61866.0,61865.0,0.1]
[1728046490449,0.04185278,61866.0,61859.0,0.161656]
[1728046490664,0.03885278,61866.0,61859.0,0.1]
[1728046490882,0.161653,61861.0,61858.0,0.00164]
[1728046491101,0.323285,61865.0,61862.0,0.1]
[1728046491315,0.02734135,61866.0,61862.0,0.1]